bitfinex-derivatives/quotes_SOLF0:USTF0_20260306
["timestamp","ask_amount","ask_price","bid_price","bid_amount"]
[1772782076211,16.17402058,88.725,88.65,7.39485619]
[1772782076212,16.17402058,88.725,88.658,9.96575891]
[1772782076813,16.17402058,88.725,88.67,7.39485619]
[1772782077814,16.17402058,88.725,88.681,10.148]
[1772782078008,16.17402058,88.725,88.67,7.39485619]
[1772782078814,16.12980511,88.723,88.67,7.39485619]
[1772782079016,16.12980511,88.723,88.656,9.96575891]
[1772782079310,16.12980511,88.723,88.66,9.96575891]
[1772782079513,16.12980511,88.723,88.658,9.96575891]
[1772782079810,16.12980511,88.723,88.65,7.39485619]
[1772782079811,16.12980511,88.723,88.655,9.96575891]
[1772782080005,16.12980511,88.723,88.67,7.39485619]
[1772782080411,16.12980511,88.723,88.678,10.148]
[1772782080811,16.12980511,88.723,88.633,19.93151783]
[1772782080812,16.12980511,88.723,88.68,10.148]
[1772782081511,16.12980511,88.723,88.635,19.93151783]
[1772782081512,16.12980511,88.723,88.655,9.96575891]
[1772782081713,16.12980511,88.723,88.653,9.96575891]
[1772782082010,16.12980511,88.723,88.655,9.96575891]
[1772782082219,16.12980511,88.723,88.658,9.96575891]
[1772782082515,16.12980511,88.723,88.656,9.96575891]
[1772782082715,16.12980511,88.723,88.658,9.96575891]
[1772782082915,16.12980511,88.723,88.679,10.148]
[1772782083416,16.12980511,88.723,88.65,7.39485619]
[1772782083813,16.11821612,88.72,88.668,10.149]
[1772782084214,16.11821612,88.72,88.65,7.39485619]
[1772782085814,15.9905405,88.716,88.659,10.15]
[1772782086317,15.9905405,88.706,88.65,10.151]
[1772782086820,15.9905405,88.706,88.636,1.0]
[1772782087018,15.98726732,88.721,88.65,7.39485619]
[1772782087319,15.98726732,88.721,88.651,1.0]
[1772782087819,15.98726732,88.71,88.651,1.0]
[1772782088925,15.98412815,88.706,88.652,10.151]
[1772782089725,10.145,88.704,88.651,1.0]
[1772782090022,15.98412815,88.703,88.642,10.152]
[1772782090828,15.92919129,88.699,88.642,10.152]
[1772782091228,15.92919129,88.699,88.632,10.153]
[1772782091432,15.92919129,88.687,88.631,1.0]
[1772782091829,15.92919129,88.687,88.617,9.96575891]
[1772782092023,15.92919129,88.687,88.578,1.0]
[1772782092024,7.39594837,88.65,88.567,13.3432734]
[1772782092226,10.94631183,88.629,88.523,13.3432734]
[1772782092527,10.94631183,88.609,88.54,7.39594837]
[1772782092919,10.94631183,88.609,88.555,10.162]
[1772782093120,10.94146002,88.669,88.56,7.39594837]
[1772782093324,10.94146002,88.669,88.502,158.179]
[1772782093325,10.94146002,88.669,88.58,7.39594837]
[1772782093632,10.94146002,88.667,88.584,10.159]
[1772782094528,10.151,88.652,88.584,10.159]
[1772782094731,10.94146002,88.651,88.584,10.159]
[1772782095530,10.94146002,88.651,88.57,7.39594837]
[1772782097030,10.94146002,88.651,88.594,10.158]
[1772782100732,10.94146002,88.651,88.581,10.159]
[1772782102226,10.94146002,88.651,88.591,10.158]
[1772782106433,10.94146002,88.651,88.6,10.157]
[1772782107233,10.94146002,88.651,88.61,10.156]
[1772782107434,10.94146002,88.651,88.6,7.39594837]
[1772782107435,0.00046002,88.651,88.6,7.39594837]
[1772782107640,7.39594837,88.7,88.6,7.39594837]
[1772782107832,7.39594837,88.72,88.6,7.39594837]
[1772782108138,10.147,88.689,88.62,10.155]
[1772782109536,5.25543731,88.684,88.628,10.154]
[1772782110742,5.25543731,88.684,88.62,7.39594837]
[1772782110743,5.25543731,88.684,88.639,10.152]
[1772782111239,5.25543731,88.684,88.62,7.39594837]
[1772782112243,5.24377392,88.682,88.63,10.154]
[1772782112543,5.24377392,88.682,88.64,2.95938473]
[1772782113538,5.22198847,88.671,88.62,2.95938473]
[1772782113733,5.22198847,88.671,88.63,2.95938473]
[1772782114345,3.75278881,88.67,88.63,2.95938473]
[1772782114544,3.75278881,88.67,88.604,0.50931333]
[1772782114941,3.75278881,88.668,88.619,10.155]
[1772782115239,3.75278881,88.668,88.604,0.50931333]
[1772782116544,3.75278881,88.668,88.591,3.47825281]
[1772782116745,3.75278881,88.66,88.604,10.156]
[1772782117448,3.75278881,88.657,88.604,10.156]
[1772782117638,3.75278881,88.657,88.591,3.47825281]
[1772782117639,3.75278881,88.657,88.595,10.157]
[1772782118747,10.152,88.647,88.595,10.157]
[1772782119047,10.152,88.647,88.574,1.0]
[1772782119048,3.75278881,88.646,88.561,3.52515068]
[1772782119840,3.75278881,88.631,88.579,10.159]
[1772782120751,3.75278881,88.628,88.579,10.159]
[1772782125342,3.75278881,88.628,88.536,13.3432734]
[1772782125343,3.75278881,88.659,88.584,3.59855154]
[1772782125951,3.75278881,88.655,88.601,3.59855154]
[1772782126151,3.75278881,88.699,88.601,3.59855154]
[1772782127155,10.148,88.676,88.625,10.154]
[1772782127355,3.75278881,88.675,88.625,10.154]
[1772782128350,3.75278881,88.675,88.633,10.153]
[1772782129851,10.146,88.694,88.633,10.153]
[1772782130156,3.75278881,88.693,88.64,3.5999656]
[1772782131548,3.75278881,88.693,88.652,10.151]
[1772782131753,10.145,88.702,88.652,10.151]
[1772782132558,13.89778881,88.702,88.652,10.151]
[1772782132757,3.75278881,88.701,88.652,10.151]
[1772782137366,3.75278881,88.701,88.652,13.7558079]
[1772782137566,20.281,88.747,88.64,7.40035338]
[1772782137567,3.75278881,88.719,88.659,3.6048079]
[1772782138162,3.75278881,88.717,88.661,10.15]
[1772782140161,3.75278881,88.717,88.659,3.6048079]
[1772782140162,3.75278881,88.717,88.669,3.59691935]
[1772782140665,3.76467425,88.709,88.65,6.55403256]
[1772782140862,3.76467425,88.699,88.65,6.55403256]
[1772782141368,3.76467425,88.689,88.64,2.95711321]
[1772782141571,3.76467425,88.689,88.636,3.562472]
[1772782142868,3.76467425,88.684,88.636,3.562472]
[1772782146173,3.76467425,88.684,88.64,2.95711321]
[1772782146672,3.76467425,88.684,88.642,10.152]
[1772782150878,3.76467425,88.684,88.64,2.95909364]
[1772782151075,3.76467425,88.684,88.636,3.562472]
[1772782152077,3.76467425,88.684,88.647,10.152]
[1772782152678,3.76467425,88.684,88.64,2.95909364]
[1772782152879,3.76467425,88.684,88.637,13.80752489]
[1772782155081,3.76467425,88.684,88.637,3.65452489]
[1772782155382,3.76467425,88.699,88.641,3.63563327]
[1772782156882,10.146,88.692,88.644,3.64824515]
[1772782157480,292.20787753,88.748,88.644,3.64824515]
[1772782157481,3.76467425,88.687,88.644,3.64824515]
[1772782159979,10.147,88.685,88.644,3.64824515]
[1772782160183,10.147,88.685,88.634,10.153]
[1772782160184,3.76467425,88.684,88.634,10.153]
[1772782160581,3.76467425,88.684,88.635,3.63295186]
[1772782160883,3.76467425,88.684,88.64,2.95909364]
[1772782161278,13.91267425,88.683,88.638,3.62609784]
[1772782163681,10.148,88.677,88.638,3.62609784]
[1772782165979,13.91267425,88.677,88.638,3.62609784]
[1772782167379,2.95909364,88.69,88.63,13.32178066]
[1772782167380,10.149,88.673,88.63,13.32178066]
[1772782167580,3.76467425,88.672,88.625,13.91943933]
[1772782167785,3.76467425,88.672,88.626,3.55675231]
[1772782168187,3.76467425,88.672,88.628,10.36268702]
[1772782168484,3.76467425,88.672,88.628,13.91943933]
[1772782168686,3.76467425,88.672,88.63,6.51584595]
[1772782169281,3.76467425,88.672,88.632,10.36268702]
[1772782169478,13.91367425,88.671,88.632,10.36268702]
[1772782169682,3.76467425,88.67,88.632,10.36268702]
[1772782170281,3.76467425,88.67,88.636,10.36268702]
[1772782170788,3.76467425,88.67,88.63,3.55675231]
[1772782170789,3.76467425,88.67,88.634,10.36268702]
[1772782172184,3.76467425,88.67,88.635,10.36268702]
[1772782173387,3.83236868,88.666,88.631,10.36268702]
[1772782173694,3.83236868,88.666,88.62,10.36268702]
[1772782173891,3.83236868,88.666,88.618,3.55459303]
[1772782173892,3.83236868,88.663,88.618,3.55459303]
[1772782174787,3.83236868,88.66,88.618,3.55459303]
[1772782177389,3.83236868,88.66,88.621,3.60688452]
[1772782178986,10.149,88.67,88.621,3.60688452]
[1772782179190,3.83236868,88.669,88.631,3.60386538]
[1772782181400,3.83236868,88.666,88.623,10.36268702]
[1772782181599,2.95909364,88.66,88.619,3.59466087]
[1772782181798,3.83236868,88.659,88.619,3.59466087]
[1772782182403,3.83236868,88.659,88.61,2.95909364]
[1772782182796,3.83236868,88.659,88.612,3.57873693]
[1772782183291,3.83236868,88.687,88.64,2.95909364]
[1772782183496,3.83236868,88.687,88.634,10.153]
[1772782183902,3.83236868,88.683,88.631,3.57873693]
[1772782184699,3.83236868,88.683,88.632,10.36268702]
[1772782185305,3.83236868,88.683,88.631,13.94142395]
[1772782185703,3.83236868,88.672,88.631,13.94142395]
[1772782186108,3.83236868,88.672,88.632,10.36268702]
[1772782186410,3.83236868,88.689,88.635,3.5637141]
[1772782187108,3.83236868,88.689,88.638,3.64421105]
[1772782188607,1.9803907,88.669,88.632,10.42155991]
[1772782188809,1.9803907,88.669,88.611,3.92069313]
[1772782189601,1.9803907,88.669,88.612,3.92069313]
[1772782189810,1.9803907,88.669,88.621,3.92069313]
[1772782190310,10.149,88.668,88.621,3.92069313]
[1772782193208,10.15,88.663,88.621,3.92069313]
[1772782200319,10.149,88.673,88.621,3.92069313]
[1772782200524,10.149,88.673,88.631,3.82973848]
[1772782200824,1.97170127,88.679,88.62,2.95909364]
[1772782201020,1.99422291,88.669,88.618,3.82973848]
[1772782201924,1.99422291,88.665,88.62,2.95909364]
[1772782202525,1.99422291,88.662,88.62,2.95909364]
[1772782202728,1.99422291,88.662,88.618,3.82973848]
[1772782203523,1.99422291,88.662,88.621,3.82973848]
[1772782203922,2.15190356,88.679,88.63,2.95909364]
[1772782204315,10.149,88.668,88.63,2.95909364]
[1772782204516,2.15190356,88.667,88.621,3.82973848]
[1772782204918,10.15,88.662,88.621,3.82973848]
[1772782205518,10.149,88.67,88.631,3.82973848]
[1772782205724,2.13186208,88.679,88.631,3.82973848]
[1772782207023,10.148,88.678,88.64,3.82973848]
[1772782207327,3.64662887,88.669,88.61,2.95909364]
[1772782207827,3.64662887,88.663,88.612,10.156]
[1772782209026,3.64662887,88.663,88.62,2.95909364]
[1772782210229,8.14662887,88.664,88.62,2.95909364]
[1772782210924,10.151,88.657,88.616,3.82973848]
[1772782211431,10.151,88.657,88.62,2.95909364]
[1772782212534,10.151,88.657,88.616,3.82973848]
[1772782214534,2.41799773,88.663,88.616,3.82973848]
[1772782215534,2.41799773,88.663,88.6,13.81986756]
[1772782215535,2.96093932,88.63,88.586,3.82973848]
[1772782215730,2.43498315,88.629,88.586,3.82973848]
[1772782215931,2.96093932,88.63,88.586,3.82973848]
[1772782215932,2.43498315,88.627,88.586,3.82973848]
[1772782218337,10.153,88.636,88.591,3.82973848]
[1772782218533,10.153,88.636,88.531,20.33]
[1772782218534,2.54423113,88.648,88.601,3.82973848]
[1772782219836,2.54423113,88.648,88.602,3.82973848]
[1772782220632,10.151,88.653,88.602,3.82973848]
[1772782220837,10.48035774,88.67,88.611,3.82973848]
[1772782220838,8.60843596,88.652,88.611,3.82973848]
[1772782221041,10.15,88.661,88.611,3.82973848]
[1772782221234,8.60799332,88.66,88.611,3.82973848]
[1772782221534,10.15,88.658,88.611,3.82973848]
[1772782221735,2.50185622,88.649,88.611,3.82973848]
[1772782221939,2.96093932,88.64,88.591,3.82973848]
[1772782222137,5.46279554,88.64,88.591,3.82973848]
[1772782222337,2.50185622,88.64,88.591,3.82973848]
[1772782222735,2.50185622,88.64,88.596,3.82973848]
[1772782222941,2.50185622,88.64,88.601,3.82973848]
[1772782223837,12.65385622,88.64,88.601,3.82973848]
[1772782224141,2.58851912,88.638,88.588,3.82973848]
[1772782224742,12.74151912,88.638,88.588,3.82973848]
[1772782225043,2.59137021,88.651,88.601,3.82973848]
[1772782225736,13.11193932,88.65,88.601,3.82973848]
[1772782226042,2.59137021,88.649,88.601,3.82973848]
[1772782226943,2.58694777,88.639,88.588,3.82973848]
[1772782227141,2.58694777,88.639,88.535,27.59111307]
[1772782227142,2.58694777,88.629,88.575,3.82973848]
[1772782227340,5.54788709,88.62,88.575,3.82973848]
[1772782227540,2.58694777,88.619,88.575,3.82973848]
[1772782229441,10.154,88.628,88.581,3.82973848]
[1772782230042,2.6032963,88.633,88.581,3.82973848]
[1772782231741,2.6032963,88.633,88.584,3.95841506]
[1772782231946,10.153,88.632,88.584,3.95841506]
[1772782232746,2.96093932,88.63,88.584,3.95841506]
[1772782233739,2.96093932,88.64,88.593,3.95841506]
[1772782234044,2.51056429,88.646,88.552,1.0]
[1772782234045,2.51056429,88.646,88.601,3.95841506]
[1772782234242,2.51056429,88.629,88.581,3.95841506]
[1772782234446,2.51056429,88.619,88.561,3.95841506]
[1772782235537,2.51056429,88.619,88.572,3.95841506]
[1772782236848,2.51056429,88.619,88.571,10.16]
[1772782236849,2.51056429,88.619,88.575,3.95841506]
[1772782237345,2.51056429,88.619,88.58,3.95841506]
[1772782237541,2.51056429,88.619,88.58,6.91935438]
[1772782237947,2.51056429,88.619,88.58,3.95841506]
[1772782242251,10.153,88.634,88.581,3.95841506]
[1772782242453,2.55681572,88.653,88.601,3.95841506]
[1772782242653,2.55681572,88.669,88.621,3.95841506]
[1772782242854,2.45436338,88.667,88.621,3.95841506]
[1772782243055,2.45436338,88.665,88.621,3.95841506]
[1772782243256,2.45436338,88.663,88.621,3.95841506]
[1772782243753,10.15,88.658,88.621,3.95841506]
[1772782243960,12.60436338,88.658,88.61,2.96093932]
[1772782244158,2.96093932,88.66,88.61,2.96093932]
[1772782244159,2.45436338,88.657,88.61,2.96093932]
[1772782244354,2.45436338,88.657,88.61,17.07535438]
[1772782244659,2.45436338,88.657,88.62,2.96093932]
[1772782245059,2.45436338,88.657,88.611,3.95841506]
[1772782245662,9.51192755,88.683,88.631,3.95841506]
[1772782245663,2.45033573,88.682,88.631,3.95841506]
[1772782245862,2.45033573,88.669,88.62,2.96093932]
[1772782246163,2.45033573,88.659,88.604,3.95841506]
[1772782246462,2.96093932,88.66,88.604,3.95841506]
[1772782246463,2.45033573,88.657,88.604,3.95841506]
[1772782246763,2.45033573,88.655,88.604,3.95841506]
[1772782247165,2.42727243,88.653,88.604,3.95841506]
[1772782247464,2.42727243,88.649,88.604,3.95841506]
[1772782248867,2.96093932,88.66,88.611,3.95841506]
[1772782250275,8.61656671,88.659,88.611,3.95841506]
[1772782250474,10.15,88.658,88.611,3.95841506]
[1772782250671,2.96093932,88.66,88.611,3.95841506]
[1772782250672,2.34978955,88.656,88.611,3.95841506]
[1772782250974,2.96093932,88.65,88.611,3.95841506]
[1772782251175,2.34978955,88.656,88.611,3.95841506]
[1772782252474,12.50746635,88.671,88.621,3.95841506]
[1772782252674,8.61977381,88.67,88.621,3.95841506]
[1772782252875,8.61977381,88.669,88.621,3.95841506]
[1772782253175,10.149,88.667,88.621,3.95841506]
[1772782253376,8.61977381,88.666,88.621,3.95841506]
[1772782253578,8.61977381,88.665,88.621,3.95841506]
[1772782253775,8.61977381,88.664,88.621,3.95841506]
[1772782254076,10.149,88.667,88.621,3.95841506]
[1772782254279,8.62022253,88.666,88.621,3.95841506]
[1772782254478,8.62022253,88.665,88.621,3.95841506]
[1772782254679,8.62022253,88.664,88.621,3.95841506]
[1772782254880,10.149,88.667,88.621,3.95841506]
[1772782255179,8.62022253,88.666,88.621,3.95841506]
[1772782255379,10.15,88.664,88.621,3.95841506]
[1772782255680,2.96093932,88.66,88.621,3.95841506]
[1772782256076,18.77099674,88.659,88.621,3.95841506]
[1772782256272,2.35277803,88.657,88.601,3.95841506]
[1772782256470,10.97377477,88.656,88.601,3.95841506]
[1772782256676,8.62099674,88.655,88.601,3.95841506]
[1772782256878,10.151,88.654,88.601,3.95841506]
[1772782257078,2.33569477,88.653,88.601,3.95841506]
[1772782257580,2.96093932,88.65,88.601,3.95841506]
[1772782258881,2.33569477,88.646,88.601,3.95841506]
[1772782259678,2.96093932,88.65,88.601,3.95841506]
[1772782259980,2.33934545,88.659,88.601,3.95841506]
[1772782260175,10.95968623,88.658,88.601,3.95841506]
[1772782260481,2.33599246,88.656,88.601,3.95841506]
[1772782260776,2.32427468,88.643,88.601,3.95841506]
[1772782261881,2.32427468,88.657,88.601,3.95841506]
[1772782262077,8.6247925,88.656,88.601,3.95841506]
[1772782262378,8.6247925,88.655,88.611,3.96787143]
[1772782262574,2.96093932,88.67,88.576,1.0]
[1772782262575,2.32427468,88.671,88.621,3.96787143]
[1772782262779,8.62411001,88.67,88.621,3.96787143]
[1772782262976,2.32427468,88.671,88.621,3.96787143]
[1772782262977,8.62411001,88.669,88.621,3.96787143]
[1772782263175,8.62411001,88.668,88.621,3.96787143]
[1772782263374,8.62411001,88.667,88.621,3.96787143]
[1772782263582,2.32427468,88.671,88.621,3.96787143]
[1772782263780,8.62271806,88.67,88.621,3.96787143]
[1772782264086,10.48035774,88.688,88.577,21.32]
[1772782264087,2.32160763,88.685,88.641,3.96787143]
[1772782264280,8.62150035,88.684,88.641,3.96787143]
[1772782264583,8.62150035,88.683,88.641,3.96787143]
[1772782264783,8.62150035,88.682,88.641,3.96787143]
[1772782264979,2.32160763,88.685,88.641,3.96787143]
[1772782265181,5.28811033,88.7,88.651,3.96787143]
[1772782265381,2.32717101,88.689,88.631,3.96787143]
[1772782265575,2.32717101,88.679,88.631,3.96787143]
[1772782265781,2.96093932,88.67,88.631,3.96787143]
[1772782266680,10.149,88.666,88.617,3.96787143]
[1772782266984,2.96093932,88.66,88.617,3.96787143]
[1772782267484,5.35451672,88.66,88.617,3.96787143]
[1772782267678,10.15,88.658,88.617,3.96787143]
[1772782267883,12.5435774,88.658,88.617,3.96787143]
[1772782268686,2.96093932,88.65,88.601,3.96787143]
[1772782268982,5.35451672,88.65,88.601,3.96787143]
[1772782269180,2.3935774,88.65,88.601,3.96787143]
[1772782269386,8.57073858,88.659,88.603,3.96787143]
[1772782269579,2.35926824,88.659,88.603,3.96787143]
[1772782269784,2.35926824,88.659,88.611,3.96787143]
[1772782271782,2.96093932,88.67,88.621,3.96787143]
[1772782272089,2.35657802,88.673,88.621,3.96787143]
[1772782272390,12.50357802,88.686,88.641,3.96787143]
[1772782273390,20.283,88.738,88.641,3.96787143]
[1772782273391,10.146,88.695,88.641,3.96787143]
[1772782273592,10.146,88.695,88.651,3.96787143]
[1772782274892,2.37386335,88.715,88.661,3.96787143]
[1772782275088,2.95952651,88.7,88.661,3.96787143]
[1772782275587,2.37386335,88.709,88.65,2.95952651]
[1772782275790,5.33338986,88.67,88.629,3.96787143]
[1772782276289,2.95952651,88.68,88.631,3.96787143]
[1772782278494,10.148,88.679,88.631,3.96787143]
[1772782278998,2.95952651,88.67,88.631,3.96787143]
[1772782279394,9.5168439,88.707,88.631,3.96787143]
[1772782279395,2.39905931,88.689,88.631,3.96787143]
[1772782280894,10.147,88.688,88.631,3.96787143]
[1772782281094,10.147,88.688,88.641,3.96787143]
[1772782281686,10.146,88.697,88.651,3.96787143]
[1772782285898,10.48035774,88.731,88.651,3.96787143]
[1772782285899,2.95952651,88.7,88.651,3.96787143]
[1772782286096,2.51261648,88.707,88.66,2.95952651]
[1772782286800,2.51261648,88.707,88.651,3.96787143]
[1772782287694,2.51261648,88.707,88.661,3.96787143]
[1772782289194,8.52536985,88.734,88.681,3.96787143]
[1772782289496,20.96231945,88.778,88.681,3.96787143]
[1772782289497,2.52820216,88.739,88.681,3.96787143]
[1772782289691,2.52820216,88.719,88.671,3.96787143]
[1772782289894,11.47193582,88.762,88.671,3.96787143]
[1772782289895,5.49226106,88.71,88.671,3.96787143]
[1772782290498,10.145,88.708,88.671,3.96787143]
[1772782290800,10.145,88.708,88.656,3.88877192]
[1772782290801,2.5322028,88.707,88.656,3.88877192]
[1772782291599,10.145,88.706,88.656,3.88877192]
[1772782291801,2.5322028,88.689,88.642,3.88877192]
[1772782292099,5.49172931,88.68,88.628,3.88877192]
[1772782292402,2.5322028,88.68,88.631,3.88877192]
[1772782292600,2.95952651,88.69,88.641,3.88877192]
[1772782293697,2.54442891,88.693,88.641,3.88877192]
[1772782293902,2.95952651,88.69,88.641,3.88877192]
[1772782295606,2.54442891,88.693,88.641,3.88877192]
[1772782295802,2.95952651,88.69,88.641,3.88877192]
[1772782296305,2.54755242,88.689,88.641,3.88877192]
[1772782297100,2.54218482,88.679,88.627,3.88877192]
[1772782297706,2.54218482,88.679,88.63,2.95952651]
[1772782297906,2.54218482,88.679,88.631,3.88877192]
[1772782299304,12.69310581,88.685,88.631,3.88877192]
[1772782299505,2.95952651,88.68,88.631,3.88877192]
[1772782299906,2.54610581,88.677,88.631,3.88877192]
[1772782300507,10.148,88.675,88.631,3.88877192]
[1772782300807,2.54610581,88.674,88.631,3.88877192]
[1772782301209,2.55418515,88.669,88.62,2.95952651]
[1772782301705,2.55418515,88.669,88.621,3.88877192]
[1772782302498,13.10752651,88.68,88.624,3.88877192]
[1772782302709,13.10752651,88.68,88.631,3.88877192]
[1772782303808,15.76462424,88.68,88.631,3.88877192]
[1772782304008,10.149,88.672,88.631,3.88877192]
[1772782304209,2.78855709,88.669,88.618,3.88877192]
[1772782305199,2.78855709,88.669,88.625,3.88877192]
[1772782305409,2.91708143,88.679,88.625,3.88877192]
[1772782306205,2.91708143,88.679,88.631,3.88877192]
[1772782306408,3.04544255,88.669,88.62,2.95952651]
[1772782306609,3.04544255,88.669,88.618,14.04377192]
[1772782307213,6.03532349,88.66,88.608,3.88877192]
[1772782307414,3.07579698,88.659,88.608,3.88877192]
[1772782307611,3.07579698,88.659,88.61,2.95952651]
[1772782307814,3.07579698,88.659,88.611,3.88877192]
[1772782308315,3.07579698,88.659,88.613,3.88877192]
[1772782309113,10.15,88.658,88.613,3.88877192]
[1772782309313,3.32439622,88.657,88.613,3.88877192]
[1772782310916,3.67087025,88.649,88.6,2.95952651]
[1772782311420,3.67087025,88.649,88.601,3.88877192]
[1772782311821,10.152,88.646,88.601,3.88877192]
[1772782312121,3.67087025,88.649,88.601,3.88877192]
[1772782312919,2.95952651,88.66,88.601,3.88877192]
[1772782313715,2.95952651,88.65,88.601,3.88877192]
[1772782313923,10.151,88.657,88.605,3.88877192]
[1772782314816,3.83943264,88.656,88.605,3.88877192]
[1772782315421,2.95952651,88.65,88.605,3.88877192]
[1772782316622,3.83943264,88.656,88.568,1.0]
[1772782316623,3.83943264,88.656,88.611,3.88877192]
[1772782316822,8.52098872,88.668,88.611,3.88877192]
[1772782317022,2.95952651,88.67,88.621,3.88877192]
[1772782317821,2.95952651,88.67,88.623,3.88877192]
[1772782318321,10.148,88.678,88.623,3.88877192]
[1772782318625,2.95952651,88.68,88.631,3.88877192]
[1772782318821,3.83943264,88.669,88.616,3.88877192]
[1772782319023,3.83943264,88.669,88.621,3.88877192]
[1772782319421,10.149,88.667,88.621,3.88877192]
[1772782320127,3.83943264,88.669,88.622,15.20825934]
[1772782320326,3.83943264,88.669,88.623,5.05425934]
[1772782320723,4.87693336,88.667,88.623,5.05425934]
[1772782320920,7.83645987,88.65,88.608,5.05425934]
[1772782321423,4.87693336,88.649,88.591,5.05425934]
[1772782321627,2.95952651,88.64,88.591,5.05425934]
[1772782321926,4.87693336,88.649,88.591,5.05425934]
[1772782322321,7.83645987,88.63,88.591,5.05425934]
[1772782322926,4.87693336,88.629,88.575,5.05425934]
[1772782323131,2.95952651,88.61,88.561,5.05425934]
[1772782323319,4.87693336,88.609,88.561,5.05425934]
[1772782323523,4.87693336,88.599,88.547,5.05425934]
[1772782324530,2.95952651,88.59,88.547,5.05425934]
[1772782324925,2.95952651,88.58,88.531,5.05425934]
[1772782326031,4.87693336,88.589,88.531,5.05425934]
[1772782326925,4.87693336,88.589,88.541,5.05425934]
[1772782328329,2.95952651,88.59,88.541,5.05425934]
[1772782328831,4.87693336,88.605,88.551,5.05425934]
[1772782329034,4.87693336,88.605,88.561,5.05425934]
[1772782330428,13.11452651,88.62,88.571,5.05425934]
[1772782330629,2.95952651,88.63,88.581,5.05425934]
[1772782331930,13.11352651,88.63,88.581,5.05425934]
[1772782332533,17.99045987,88.63,88.581,5.05425934]
[1772782334234,17.99045987,88.63,88.585,15.21325934]
[1772782334235,4.87693336,88.63,88.585,15.21325934]
[1772782335136,4.87693336,88.63,88.585,5.05425934]
[1772782335635,4.87693336,88.645,88.601,5.05425934]
[1772782336038,7.83982956,88.63,88.585,5.05425934]
[1772782336238,4.87693336,88.629,88.585,5.05425934]
[1772782337237,2.9628962,88.62,88.571,5.05425934]
[1772782338035,4.87693336,88.625,88.571,5.05425934]
[1772782338538,2.9628962,88.63,88.581,5.05425934]
[1772782339732,10.154,88.629,88.581,5.05425934]
[1772782340643,10.154,88.625,88.581,5.05425934]
[1772782341542,10.155,88.621,88.581,5.05425934]
[1772782345041,13.1168962,88.63,88.581,5.05425934]
[1772782345441,4.87693336,88.629,88.581,5.05425934]
[1772782346841,10.154,88.624,88.581,5.05425934]
[1772782347042,15.03093336,88.624,88.581,5.05425934]
[1772782347546,4.87693336,88.624,88.581,5.05425934]
[1772782348551,15.03093336,88.624,88.581,5.05425934]
[1772782349346,4.87693336,88.623,88.581,5.05425934]
[1772782349540,4.87693336,88.619,88.57,2.9628962]
[1772782349744,4.87693336,88.619,88.568,5.05425934]
[1772782350841,6.74903547,88.616,88.568,5.05425934]
[1772782351645,16.90503547,88.613,88.568,5.05425934]
[1772782354849,6.74903547,88.613,88.568,5.05425934]
[1772782355446,6.74903547,88.629,88.58,2.9628962]
[1772782355743,6.74903547,88.629,88.526,21.73342457]
[1772782355744,6.74903547,88.629,88.59,9.72753054]
[1772782357245,6.74903547,88.629,88.58,2.9628962]
[1772782357549,6.74903547,88.629,88.58,9.72753054]
[1772782358546,6.74903547,88.629,88.581,6.76463434]
[1772782358852,10.154,88.628,88.581,6.76463434]
[1772782359146,6.74903547,88.627,88.581,6.76463434]
[1772782361651,6.74903547,88.627,88.582,10.159]
[1772782361848,6.74903547,88.627,88.582,16.92363434]
[1772782362452,6.74903547,88.627,88.582,6.76463434]
[1772782362955,2.9628962,88.63,88.582,6.76463434]
[1772782362956,16.90303547,88.625,88.582,6.76463434]
[1772782364456,10.154,88.623,88.582,6.76463434]
[1772782364657,16.90303547,88.623,88.582,6.76463434]
[1772782368854,6.74903547,88.619,88.582,6.76463434]
[1772782371460,6.74903547,88.619,88.57,2.9628962]
[1772782371763,6.74903547,88.609,88.555,6.76463434]
[1772782371963,6.74903547,88.607,88.555,6.76463434]
[1772782372163,6.74903547,88.605,88.555,6.76463434]
[1772782372360,6.74903547,88.603,88.555,6.76463434]
[1772782372963,6.74903547,88.603,88.561,6.76463434]
[1772782373761,6.74903547,88.603,88.562,10.161]
[1772782373968,6.74903547,88.603,88.563,6.76463434]
[1772782380569,7.11732471,88.601,88.563,6.76463434]
[1772782380863,2.9628962,88.58,88.536,7.69379026]
[1772782381166,7.11732471,88.569,88.523,7.69379026]
[1772782382868,7.11732471,88.559,88.509,7.69379026]
[1772782383068,2.9628962,88.55,88.509,7.69379026]
[1772782383368,10.08022091,88.55,88.509,7.69379026]
[1772782385071,7.11732471,88.549,88.509,7.69379026]
[1772782385672,10.162,88.557,88.509,7.69379026]
[1772782385876,7.11732471,88.556,88.509,7.69379026]
[1772782388472,7.11732471,88.556,88.51,10.65668646]
[1772782388773,7.11732471,88.556,88.511,7.69379026]